[Event "Early-Titled-Tuesday-Blitz-March-19-2024"]
[Site "Chess.com"]
[Date "2024.03.19"]
[Round "10"]
[White "KVAIDAN"]
[Black "Cambek64"]
[Result "0-1"]
[WhiteElo "2322"]
[BlackElo "2500"]
[TimeControl "180+1"]
[EndTime "9:55:06 PDT"]
[Termination "Cambek64 won on time"]

1. f4 {[%clk 0:01:36.5]} 1... d5 {[%clk 0:02:58]} 2. Nf3 {[%clk 0:01:34.5]} 2...
g6 {[%clk 0:02:57.8]} 3. e3 {[%clk 0:01:33.3]} 3... Bg7 {[%clk 0:02:58.2]} 4.
Be2 {[%clk 0:01:31.8]} 4... c5 {[%clk 0:02:56.7]} 5. O-O {[%clk 0:01:32]} 5...
Nc6 {[%clk 0:02:54.5]} 6. d3 {[%clk 0:01:31.6]} 6... Nh6 {[%clk 0:02:53.4]} 7.
c3 {[%clk 0:01:27.8]} 7... O-O {[%clk 0:02:53.5]} 8. e4 {[%clk 0:01:27.5]} 8...
e6 {[%clk 0:02:51.9]} 9. h3 {[%clk 0:01:22.6]} 9... f5 {[%clk 0:02:51.8]} 10.
exd5 {[%clk 0:01:13.8]} 10... exd5 {[%clk 0:02:50.8]} 11. Qb3 {[%clk 0:01:11.6]}
11... Nf7 {[%clk 0:02:50.7]} 12. a4 {[%clk 0:01:03.2]} 12... b6 {[%clk
0:02:43.1]} 13. Na3 {[%clk 0:00:57.7]} 13... Re8 {[%clk 0:02:43.5]} 14. Qd1
{[%clk 0:00:55.4]} 14... d4 {[%clk 0:02:41.6]} 15. c4 {[%clk 0:00:51.4]} 15...
Bb7 {[%clk 0:02:35.6]} 16. Bd2 {[%clk 0:00:51.5]} 16... Qd7 {[%clk 0:02:28.6]}
17. Nc2 {[%clk 0:00:45.4]} 17... a5 {[%clk 0:02:28.2]} 18. Na3 {[%clk
0:00:38.3]} 18... Re6 {[%clk 0:02:28.7]} 19. Ng5 {[%clk 0:00:34.8]} 19... Nxg5
{[%clk 0:02:26.4]} 20. fxg5 {[%clk 0:00:35]} 20... Rae8 {[%clk 0:02:27]} 21. Bf3
{[%clk 0:00:34]} 21... Nb4 {[%clk 0:02:20.3]} 22. Bxb4 {[%clk 0:00:32.9]} 22...
axb4 {[%clk 0:02:19.6]} 23. Nb5 {[%clk 0:00:32.2]} 23... Bxf3 {[%clk 0:02:16.4]}
24. Qxf3 {[%clk 0:00:30.9]} 24... Re3 {[%clk 0:02:14.1]} 25. Qd5+ {[%clk
0:00:30.2]} 25... Qxd5 {[%clk 0:02:12.7]} 26. cxd5 {[%clk 0:00:30.1]} 26... Rd8
{[%clk 0:02:04.8]} 27. d6 {[%clk 0:00:24.7]} 27... Be5 {[%clk 0:02:02.9]} 28. a5
{[%clk 0:00:23.9]} 28... bxa5 {[%clk 0:02:01.9]} 29. Rxa5 {[%clk 0:00:23.8]}
29... Bxd6 {[%clk 0:02:02.4]} 30. Ra6 {[%clk 0:00:23.1]} 30... Be7 {[%clk
0:01:59.9]} 31. Ra7 {[%clk 0:00:19.4]} 31... Bxg5 {[%clk 0:01:57.2]} 32. Nc7
{[%clk 0:00:17.3]} 32... Re7 {[%clk 0:01:55.1]} 33. Nb5 {[%clk 0:00:13]} 33...
Rxa7 {[%clk 0:01:53.3]} 34. Nxa7 {[%clk 0:00:11.7]} 34... Ra8 {[%clk 0:01:53.3]}
35. Nc6 {[%clk 0:00:09.7]} 35... Ra2 {[%clk 0:01:50.9]} 36. Rb1 {[%clk
0:00:09.4]} 36... b3 {[%clk 0:01:49.4]} 37. Ne5 {[%clk 0:00:08.2]} 37... Kg7
{[%clk 0:01:41.9]} 38. Nd7 {[%clk 0:00:07.5]} 38... Be7 {[%clk 0:01:41.4]} 39.
Kf2 {[%clk 0:00:06.6]} 39... Kf7 {[%clk 0:01:41.2]} 40. Ne5+ {[%clk 0:00:04.4]}
40... Ke6 {[%clk 0:01:40.2]} 41. Nc4 {[%clk 0:00:04.9]} 41... Kd5 {[%clk
0:01:37.8]} 42. Re1 {[%clk 0:00:04.3]} 42... Bg5 {[%clk 0:01:37.1]} 43. Re5+
{[%clk 0:00:03.8]} 43... Kc6 {[%clk 0:01:36.1]} 44. Re6+ {[%clk 0:00:03.6]}
44... Kc7 {[%clk 0:01:36.7]} 45. Rb6 {[%clk 0:00:03.3]} 45... Be3+ {[%clk
0:01:33.5]} 46. Kf3 {[%clk 0:00:02.7]} 46... Rxb2 {[%clk 0:01:32.7]} 47. Rxb3
{[%clk 0:00:02.7]} 47... Rxb3 {[%clk 0:01:31.7]} 48. g3 {[%clk 0:00:01.5]} 48...
Rxd3 {[%clk 0:01:31.1]} 49. g4 {[%clk 0:00:01]} 49... Bg5+ {[%clk 0:01:28.5]}
0-1

[Event "Early-Titled-Tuesday-Blitz-March-19-2024"]
[Site "Chess.com"]
[Date "2024.03.19"]
[Round "10"]
[White "Horokoskii"]
[Black "IraZyne"]
[Result "1-0"]
[WhiteElo "2176"]
[BlackElo "2318"]
[TimeControl "180+1"]
[EndTime "9:55:07 PDT"]
[Termination "Horokoskii won by checkmate"]

1. c4 {[%clk 0:02:57.9]} 1... c5 {[%clk 0:02:59.3]} 2. Nc3 {[%clk 0:02:56.9]}
2... Nf6 {[%clk 0:02:58.9]} 3. g3 {[%clk 0:02:54.9]} 3... e6 {[%clk 0:02:58.7]}
4. Bg2 {[%clk 0:02:55.4]} 4... d5 {[%clk 0:02:58.7]} 5. Nf3 {[%clk 0:02:56.1]}
5... d4 {[%clk 0:02:57.9]} 6. Nb1 {[%clk 0:02:54.9]} 6... Nc6 {[%clk 0:02:57.9]}
7. d3 {[%clk 0:02:55.2]} 7... e5 {[%clk 0:02:54.8]} 8. O-O {[%clk 0:02:54.5]}
8... Bd6 {[%clk 0:02:54.6]} 9. Nbd2 {[%clk 0:02:53.4]} 9... O-O {[%clk
0:02:52.6]} 10. Ng5 {[%clk 0:02:53.4]} 10... h6 {[%clk 0:02:48.5]} 11. Nge4
{[%clk 0:02:53.2]} 11... Be6 {[%clk 0:02:48.1]} 12. Nxf6+ {[%clk 0:02:52.5]}
12... Qxf6 {[%clk 0:02:47.7]} 13. Ne4 {[%clk 0:02:52.8]} 13... Qe7 {[%clk
0:02:48.2]} 14. a3 {[%clk 0:02:44.9]} 14... Rad8 {[%clk 0:02:44.2]} 15. b3
{[%clk 0:02:44.1]} 15... Rc8 {[%clk 0:02:41.1]} 16. Rb1 {[%clk 0:02:43.1]} 16...
b6 {[%clk 0:02:41.2]} 17. Nxd6 {[%clk 0:02:36.8]} 17... Qxd6 {[%clk 0:02:40.6]}
18. f4 {[%clk 0:02:37]} 18... f6 {[%clk 0:02:37.9]} 19. fxe5 {[%clk 0:02:33.1]}
19... Nxe5 {[%clk 0:02:36.7]} 20. Bf4 {[%clk 0:02:30.5]} 20... g5 {[%clk
0:02:35.9]} 21. Bxe5 {[%clk 0:02:28.1]} 21... Qxe5 {[%clk 0:02:35.9]} 22. Qd2
{[%clk 0:02:25.5]} 22... Rce8 {[%clk 0:02:33.2]} 23. Rbe1 {[%clk 0:02:24.8]}
23... Bg4 {[%clk 0:02:31.7]} 24. Be4 {[%clk 0:02:18]} 24... f5 {[%clk
0:02:28.4]} 25. Bd5+ {[%clk 0:02:17.9]} 25... Kg7 {[%clk 0:02:28.7]} 26. Rf2
{[%clk 0:02:12.1]} 26... Qe3 {[%clk 0:02:24.4]} 27. Qxe3 {[%clk 0:02:10]} 27...
Rxe3 {[%clk 0:02:23.9]} 28. Bf3 {[%clk 0:02:01.5]} 28... Bh3 {[%clk 0:02:17.5]}
29. Bg2 {[%clk 0:01:59.8]} 29... Bxg2 {[%clk 0:02:16.8]} 30. Kxg2 {[%clk
0:01:58]} 30... Kg6 {[%clk 0:02:16.3]} 31. Ref1 {[%clk 0:01:57.3]} 31... Re5
{[%clk 0:02:06]} 32. b4 {[%clk 0:01:52]} 32... Rfe8 {[%clk 0:02:05.2]} 33. Kg1
{[%clk 0:01:47.1]} 33... R8e6 {[%clk 0:01:57.3]} 34. Kh1 {[%clk 0:01:26.3]}
34... Rxe2 {[%clk 0:01:45.3]} 35. Rxf5 {[%clk 0:01:24]} 35... Rd2 {[%clk
0:01:45.3]} 36. g4 {[%clk 0:01:05]} 36... Rxd3 {[%clk 0:01:44.1]} 37. bxc5
{[%clk 0:01:05.3]} 37... bxc5 {[%clk 0:01:43.2]} 38. Rxc5 {[%clk 0:01:05.5]}
38... Rc3 {[%clk 0:01:37.1]} 39. Rc7 {[%clk 0:00:59.5]} 39... Rxa3 {[%clk
0:01:35]} 40. Rd7 {[%clk 0:00:57.1]} 40... d3 {[%clk 0:01:33.4]} 41. c5 {[%clk
0:00:56]} 41... Rc3 {[%clk 0:01:26.4]} 42. Rd1 {[%clk 0:00:50.4]} 42... Rxc5
{[%clk 0:01:22.5]} 43. Rxa7 {[%clk 0:00:46.1]} 43... Rc2 {[%clk 0:01:17]} 44.
Rd7 {[%clk 0:00:37.5]} 44... Ree2 {[%clk 0:01:14.6]} 45. Rd6+ {[%clk 0:00:32.6]}
45... Kg7 {[%clk 0:01:13.4]} 46. Rd7+ {[%clk 0:00:32]} 46... Kf8 {[%clk
0:01:13.5]} 47. R7xd3 {[%clk 0:00:24.5]} 47... Rxh2+ {[%clk 0:01:12.1]} 48. Kg1
{[%clk 0:00:24.7]} 48... Rcg2+ {[%clk 0:01:12]} 49. Kf1 {[%clk 0:00:24.9]} 49...
Rxg4 {[%clk 0:01:10.3]} 50. Rd8+ {[%clk 0:00:23.1]} 50... Kf7 {[%clk 0:01:09.1]}
51. R1d6 {[%clk 0:00:23]} 51... Rf4+ {[%clk 0:01:06.6]} 52. Kg1 {[%clk
0:00:23.1]} 52... Rhf2 {[%clk 0:01:03.7]} 53. R8d7+ {[%clk 0:00:22]} 53... Kg8
{[%clk 0:01:01.5]} 54. Rg6+ {[%clk 0:00:18.9]} 54... Kf8 {[%clk 0:01:00]} 55.
Rxh6 {[%clk 0:00:18.7]} 55... Ra2 {[%clk 0:00:56.1]} 56. Rh8# {[%clk 0:00:18]}
1-0

[Event "Early-Titled-Tuesday-Blitz-March-19-2024"]
[Site "Chess.com"]
[Date "2024.03.19"]
[Round "10"]
[White "UNSTOPPABLE_LEGEND"]
[Black "Goryachkina"]
[Result "1-0"]
[WhiteElo "2530"]
[BlackElo "2641"]
[TimeControl "180+1"]
[EndTime "9:55:08 PDT"]
[Termination "UNSTOPPABLE_LEGEND won by resignation"]

1. d4 {[%clk 0:02:54.1]} 1... Nf6 {[%clk 0:02:59.3]} 2. Bf4 {[%clk 0:02:54.6]}
2... c5 {[%clk 0:02:55.6]} 3. e3 {[%clk 0:02:54.9]} 3... Qb6 {[%clk 0:02:49.9]}
4. Nc3 {[%clk 0:02:53.8]} 4... cxd4 {[%clk 0:02:41]} 5. exd4 {[%clk 0:02:49.5]}
5... a6 {[%clk 0:02:34.3]} 6. Bd3 {[%clk 0:02:45.3]} 6... Qxd4 {[%clk 0:02:12]}
7. Nge2 {[%clk 0:02:45.2]} 7... Qb6 {[%clk 0:02:09.4]} 8. O-O {[%clk 0:02:45]}
8... e6 {[%clk 0:02:09.4]} 9. Ng3 {[%clk 0:02:37.5]} 9... d5 {[%clk 0:02:00.2]}
10. Re1 {[%clk 0:02:36.5]} 10... Be7 {[%clk 0:01:59.5]} 11. Nh5 {[%clk
0:02:27.5]} 11... O-O {[%clk 0:01:26.2]} 12. Qf3 {[%clk 0:01:09.2]} 12... Nbd7
{[%clk 0:01:16.3]} 13. Bg5 {[%clk 0:01:07.9]} 13... Qd8 {[%clk 0:01:04.5]} 14.
Nf4 {[%clk 0:00:44.5]} 14... b5 {[%clk 0:00:47.3]} 15. Qh3 {[%clk 0:00:41.3]}
15... g6 {[%clk 0:00:21.3]} 16. Bh6 {[%clk 0:00:32.3]} 16... b4 {[%clk
0:00:16.2]} 17. Bxf8 {[%clk 0:00:27]} 17... Bxf8 {[%clk 0:00:16.4]} 18. Nce2
{[%clk 0:00:27.4]} 18... e5 {[%clk 0:00:14.9]} 19. Nxd5 {[%clk 0:00:20.2]} 19...
Nxd5 {[%clk 0:00:14.9]} 20. Be4 {[%clk 0:00:21.1]} 20... N7b6 {[%clk 0:00:14.7]}
21. Qg3 {[%clk 0:00:19.6]} 21... Bb7 {[%clk 0:00:14]} 22. Rad1 {[%clk
0:00:18.6]} 22... Qe7 {[%clk 0:00:14.1]} 23. h4 {[%clk 0:00:18.9]} 23... Nf6
{[%clk 0:00:13.8]} 24. Bxb7 {[%clk 0:00:18.5]} 24... Qxb7 {[%clk 0:00:14.7]} 25.
Qxe5 {[%clk 0:00:18.9]} 25... Nfd7 {[%clk 0:00:15.2]} 26. Qg3 {[%clk 0:00:19.1]}
26... Bg7 {[%clk 0:00:15.3]} 27. h5 {[%clk 0:00:19.2]} 27... Nf6 {[%clk
0:00:15.1]} 28. hxg6 {[%clk 0:00:19.5]} 28... hxg6 {[%clk 0:00:16]} 29. Nf4
{[%clk 0:00:20]} 29... Re8 {[%clk 0:00:15.1]} 30. Rxe8+ {[%clk 0:00:20.2]} 30...
Nxe8 {[%clk 0:00:16]} 31. Nxg6 {[%clk 0:00:20.6]} 31... fxg6 {[%clk 0:00:15.6]}
32. Qxg6 {[%clk 0:00:21.5]} 32... Qc8 {[%clk 0:00:12]} 33. Qxb6 {[%clk
0:00:19.5]} 33... Nf6 {[%clk 0:00:12.2]} 34. Rd8+ {[%clk 0:00:19.2]} 1-0

[Event "Early-Titled-Tuesday-Blitz-March-19-2024"]
[Site "Chess.com"]
[Date "2024.03.19"]
[Round "10"]
[White "kingofthenil"]
[Black "vladgoncharov"]
[Result "0-1"]
[WhiteElo "2759"]
[BlackElo "2622"]
[TimeControl "180+1"]
[EndTime "9:55:09 PDT"]
[Termination "vladgoncharov won by checkmate"]

1. Nf3 {[%clk 0:03:00.9]} 1... Nf6 {[%clk 0:02:56]} 2. g3 {[%clk 0:03:01.3]}
2... c5 {[%clk 0:02:54.4]} 3. d4 {[%clk 0:03:01]} 3... cxd4 {[%clk 0:02:53.4]}
4. Qxd4 {[%clk 0:03:01.9]} 4... Nc6 {[%clk 0:02:53.6]} 5. Qh4 {[%clk 0:03:02.2]}
5... d5 {[%clk 0:02:48.9]} 6. Bg2 {[%clk 0:03:01.1]} 6... Bf5 {[%clk 0:02:48.3]}
7. c4 {[%clk 0:02:59.9]} 7... dxc4 {[%clk 0:02:20.5]} 8. O-O {[%clk 0:02:59.8]}
8... Rc8 {[%clk 0:02:06.4]} 9. Nc3 {[%clk 0:02:59.5]} 9... e6 {[%clk 0:01:53.8]}
10. Rd1 {[%clk 0:02:57.6]} 10... Qa5 {[%clk 0:01:49.8]} 11. Qxc4 {[%clk
0:02:53.9]} 11... Be7 {[%clk 0:01:38.8]} 12. Nd4 {[%clk 0:02:52.6]} 12... O-O
{[%clk 0:01:06.5]} 13. Bxc6 {[%clk 0:02:37.4]} 13... bxc6 {[%clk 0:01:06.3]} 14.
Nxc6 {[%clk 0:02:38.3]} 14... Qc7 {[%clk 0:01:06.5]} 15. Nxe7+ {[%clk
0:02:35.9]} 15... Qxe7 {[%clk 0:01:06.4]} 16. Qh4 {[%clk 0:02:36.8]} 16... h6
{[%clk 0:01:04.2]} 17. e4 {[%clk 0:02:35.1]} 17... Rc4 {[%clk 0:00:52.9]} 18. f3
{[%clk 0:02:21.2]} 18... Qc5+ {[%clk 0:00:44.4]} 19. Kg2 {[%clk 0:02:21.3]}
19... Bg6 {[%clk 0:00:42.1]} 20. Bxh6 {[%clk 0:02:19.9]} 20... Nxe4 {[%clk
0:00:28.1]} 21. Nxe4 {[%clk 0:00:24.6]} 21... Bxe4 {[%clk 0:00:27.7]} 22. fxe4
{[%clk 0:00:25.5]} 22... Rc2+ {[%clk 0:00:27.7]} 23. Bd2 {[%clk 0:00:23.8]}
23... Qe3 {[%clk 0:00:23.8]} 24. Qf4 {[%clk 0:00:21.8]} 24... Qxf4 {[%clk
0:00:20.4]} 25. gxf4 {[%clk 0:00:20.5]} 25... Rd8 {[%clk 0:00:21.1]} 26. Kf1
{[%clk 0:00:13.6]} 26... Rdxd2 {[%clk 0:00:21.7]} 27. Ke1 {[%clk 0:00:14.5]}
27... Rxh2 {[%clk 0:00:20.9]} 28. Rd8+ {[%clk 0:00:06.1]} 28... Kh7 {[%clk
0:00:20.5]} 29. Kd1 {[%clk 0:00:07]} 29... Rxb2 {[%clk 0:00:19.8]} 30. Kc1
{[%clk 0:00:07.6]} 30... Rhc2+ {[%clk 0:00:18.3]} 31. Kd1 {[%clk 0:00:07.6]}
31... Rh2 {[%clk 0:00:18.4]} 32. Kc1 {[%clk 0:00:08.1]} 32... Rbe2 {[%clk
0:00:18.5]} 33. Rd1 {[%clk 0:00:02.6]} 33... Rc2+ {[%clk 0:00:18.2]} 34. Kb1
{[%clk 0:00:03]} 34... Rb2+ {[%clk 0:00:18.9]} 35. Kc1 {[%clk 0:00:03.9]} 35...
Rhc2# {[%clk 0:00:19]} 0-1

[Event "Early-Titled-Tuesday-Blitz-March-19-2024"]
[Site "Chess.com"]
[Date "2024.03.19"]
[Round "10"]
[White "Joachim100x"]
[Black "Yeritsyaan"]
[Result "0-1"]
[WhiteElo "2506"]
[BlackElo "2657"]
[TimeControl "180+1"]
[EndTime "9:55:13 PDT"]
[Termination "Yeritsyaan won by resignation"]

1. e4 {[%clk 0:03:00.9]} 1... g6 {[%clk 0:02:55.2]} 2. d4 {[%clk 0:03:00.4]}
2... Bg7 {[%clk 0:02:55.8]} 3. Nc3 {[%clk 0:03:00.4]} 3... c6 {[%clk 0:02:56.4]}
4. Nf3 {[%clk 0:03:00.2]} 4... d5 {[%clk 0:02:56]} 5. h3 {[%clk 0:03:00.3]} 5...
dxe4 {[%clk 0:02:55.1]} 6. Nxe4 {[%clk 0:03:00.4]} 6... Nf6 {[%clk 0:02:55.7]}
7. Nxf6+ {[%clk 0:03:00.8]} 7... Bxf6 {[%clk 0:02:56.6]} 8. Bc4 {[%clk
0:03:01.3]} 8... O-O {[%clk 0:02:56.2]} 9. O-O {[%clk 0:03:01.5]} 9... Nd7
{[%clk 0:02:55.8]} 10. c3 {[%clk 0:03:00.4]} 10... Nb6 {[%clk 0:02:55.4]} 11.
Bb3 {[%clk 0:03:00.6]} 11... Bf5 {[%clk 0:02:55.7]} 12. Re1 {[%clk 0:03:00.7]}
12... a5 {[%clk 0:02:52.7]} 13. a3 {[%clk 0:03:00.4]} 13... a4 {[%clk 0:02:52]}
14. Ba2 {[%clk 0:03:00.6]} 14... Qd6 {[%clk 0:02:52]} 15. Ne5 {[%clk 0:03:00.3]}
15... Nd7 {[%clk 0:02:47.9]} 16. Bf4 {[%clk 0:02:44.7]} 16... Nxe5 {[%clk
0:02:47.9]} 17. Bxe5 {[%clk 0:02:44.9]} 17... Bxe5 {[%clk 0:02:47.6]} 18. Rxe5
{[%clk 0:02:45.2]} 18... Bd7 {[%clk 0:02:36.7]} 19. Qe2 {[%clk 0:02:41.4]} 19...
e6 {[%clk 0:02:29.7]} 20. Re1 {[%clk 0:02:40.6]} 20... b6 {[%clk 0:02:20.4]} 21.
h4 {[%clk 0:02:40.6]} 21... c5 {[%clk 0:02:17.8]} 22. dxc5 {[%clk 0:02:40.7]}
22... bxc5 {[%clk 0:02:18.2]} 23. h5 {[%clk 0:02:41.1]} 23... Rab8 {[%clk
0:02:13.8]} 24. h6 {[%clk 0:02:18.1]} 24... Rfc8 {[%clk 0:02:01.4]} 25. Bc4
{[%clk 0:01:41]} 25... Qf8 {[%clk 0:02:00.4]} 26. Qd2 {[%clk 0:01:37.2]} 26...
Bb5 {[%clk 0:01:55]} 27. Ba2 {[%clk 0:01:30.7]} 27... Rd8 {[%clk 0:01:52.9]} 28.
Qf4 {[%clk 0:01:30.3]} 28... Bd7 {[%clk 0:01:42.9]} 29. R1e2 {[%clk 0:01:23.8]}
29... Bc8 {[%clk 0:01:39.3]} 30. g4 {[%clk 0:01:06.1]} 30... Rd1+ {[%clk
0:01:36.6]} 31. Kh2 {[%clk 0:01:05.1]} 31... Ba6 {[%clk 0:01:21]} 32. R2e3
{[%clk 0:00:40.8]} 32... Bc8 {[%clk 0:01:00.7]} 33. Re2 {[%clk 0:00:23.2]} 33...
Bd7 {[%clk 0:00:59.8]} 34. g5 {[%clk 0:00:22.3]} 34... Qd8 {[%clk 0:00:55.6]}
35. f3 {[%clk 0:00:18.8]} 35... Bb5 {[%clk 0:00:55.3]} 36. Rf2 {[%clk
0:00:15.3]} 36... Bd3 {[%clk 0:00:51.2]} 37. Rxe6 {[%clk 0:00:14.9]} 37... c4
{[%clk 0:00:43.7]} 38. Bxc4 {[%clk 0:00:09.5]} 38... Bxc4 {[%clk 0:00:42.6]} 39.
Qxc4 {[%clk 0:00:09.6]} 39... fxe6 {[%clk 0:00:38.9]} 40. Qxe6+ {[%clk
0:00:09.5]} 40... Kf8 {[%clk 0:00:39.6]} 41. Qe5 {[%clk 0:00:08.2]} 41... Qd6
{[%clk 0:00:39.5]} 42. f4 {[%clk 0:00:08.2]} 42... Qxe5 {[%clk 0:00:39.6]} 43.
fxe5+ {[%clk 0:00:08.6]} 43... Ke7 {[%clk 0:00:40.5]} 0-1

[Event "Early-Titled-Tuesday-Blitz-March-19-2024"]
[Site "Chess.com"]
[Date "2024.03.19"]
[Round "10"]
[White "Zohid6"]
[Black "AlexanderKing"]
[Result "1-0"]
[WhiteElo "2868"]
[BlackElo "2647"]
[TimeControl "180+1"]
[EndTime "9:55:14 PDT"]
[Termination "Zohid6 won by checkmate"]

1. e4 {[%clk 0:03:00.9]} 1... e6 {[%clk 0:03:00.1]} 2. d4 {[%clk 0:03:00.2]}
2... d5 {[%clk 0:03:00.8]} 3. Nc3 {[%clk 0:03:00.8]} 3... Bb4 {[%clk 0:03:00.9]}
4. e5 {[%clk 0:03:00.3]} 4... c5 {[%clk 0:03:01.3]} 5. a3 {[%clk 0:03:00.7]}
5... Bxc3+ {[%clk 0:03:01.9]} 6. bxc3 {[%clk 0:03:01.6]} 6... Qa5 {[%clk
0:03:02.2]} 7. Bd2 {[%clk 0:03:01.4]} 7... Qa4 {[%clk 0:03:02.6]} 8. h4 {[%clk
0:02:59.8]} 8... Ne7 {[%clk 0:03:02.2]} 9. Qg4 {[%clk 0:02:57.4]} 9... Kf8
{[%clk 0:02:59.8]} 10. Bd3 {[%clk 0:02:54.6]} 10... c4 {[%clk 0:02:56.1]} 11.
Be2 {[%clk 0:02:54.4]} 11... Qxc2 {[%clk 0:02:55.7]} 12. Nh3 {[%clk 0:02:52.2]}
12... Nbc6 {[%clk 0:02:27.4]} 13. h5 {[%clk 0:02:46.7]} 13... h6 {[%clk
0:02:24.7]} 14. Nf4 {[%clk 0:02:38.1]} 14... b6 {[%clk 0:02:18]} 15. Rc1 {[%clk
0:02:25]} 15... Qb2 {[%clk 0:01:18.6]} 16. Rd1 {[%clk 0:02:17.9]} 16... Bd7
{[%clk 0:01:08.4]} 17. O-O {[%clk 0:02:16.4]} 17... Qxa3 {[%clk 0:00:51.8]} 18.
Qf3 {[%clk 0:02:11.1]} 18... Ke8 {[%clk 0:00:46.2]} 19. Qg3 {[%clk 0:02:00.9]}
19... Rg8 {[%clk 0:00:31.3]} 20. Qe3 {[%clk 0:01:50.9]} 20... Nf5 {[%clk
0:00:18.8]} 21. Qf3 {[%clk 0:01:48]} 21... Na5 {[%clk 0:00:04]} 22. Rfe1 {[%clk
0:01:26.5]} 22... Rc8 {[%clk 0:00:03.5]} 23. Bf1 {[%clk 0:01:23.6]} 23... Qf8
{[%clk 0:00:03.5]} 24. g3 {[%clk 0:01:10]} 24... Nb3 {[%clk 0:00:03.7]} 25. Bc1
{[%clk 0:01:10.1]} 25... Nxc1 {[%clk 0:00:03.5]} 26. Rxc1 {[%clk 0:01:11]} 26...
a5 {[%clk 0:00:03.1]} 27. Bh3 {[%clk 0:01:11]} 27... Ne7 {[%clk 0:00:03.4]} 28.
Ra1 {[%clk 0:01:11]} 28... Kd8 {[%clk 0:00:03]} 29. Reb1 {[%clk 0:01:11]} 29...
Qe8 {[%clk 0:00:03.6]} 30. Rxb6 {[%clk 0:01:10.2]} 30... Kc7 {[%clk 0:00:04.3]}
31. Rd6 {[%clk 0:01:09]} 31... a4 {[%clk 0:00:04.1]} 32. Qe3 {[%clk 0:00:59.6]}
32... Ra8 {[%clk 0:00:03.1]} 33. Qc1 {[%clk 0:00:59.5]} 33... Nc8 {[%clk
0:00:02.2]} 34. Nxd5+ {[%clk 0:00:45.2]} 34... exd5 {[%clk 0:00:01.8]} 35. Rxd7+
{[%clk 0:00:45.9]} 35... Qxd7 {[%clk 0:00:02.7]} 36. Bxd7 {[%clk 0:00:46.4]}
36... Kxd7 {[%clk 0:00:03.6]} 37. Qa3 {[%clk 0:00:46.3]} 37... Ra6 {[%clk
0:00:02.6]} 38. Qc5 {[%clk 0:00:45.9]} 38... Ne7 {[%clk 0:00:02.3]} 39. Qb5+
{[%clk 0:00:45.9]} 39... Rc6 {[%clk 0:00:02.8]} 40. Rxa4 {[%clk 0:00:46.2]}
40... Rc8 {[%clk 0:00:02.4]} 41. Ra7+ {[%clk 0:00:46]} 41... Ke6 {[%clk
0:00:01.8]} 42. Qb7 {[%clk 0:00:44.8]} 42... Re8 {[%clk 0:00:01.2]} 43. Qd7#
{[%clk 0:00:44.1]} 1-0

[Event "Early-Titled-Tuesday-Blitz-March-19-2024"]
[Site "Chess.com"]
[Date "2024.03.19"]
[Round "10"]
[White "2KTNGO"]
[Black "AlexPapasimakopoulos"]
[Result "1-0"]
[WhiteElo "2590"]
[BlackElo "2750"]
[TimeControl "180+1"]
[EndTime "9:55:18 PDT"]
[Termination "2KTNGO won by resignation"]

1. Nf3 {[%clk 0:02:59.8]} 1... d5 {[%clk 0:02:59.6]} 2. c4 {[%clk 0:02:58.1]}
2... e6 {[%clk 0:02:57.2]} 3. d4 {[%clk 0:02:57]} 3... a6 {[%clk 0:02:56.7]} 4.
Nbd2 {[%clk 0:02:51.7]} 4... Nf6 {[%clk 0:02:56]} 5. e3 {[%clk 0:02:51.1]} 5...
Be7 {[%clk 0:02:55.6]} 6. Qc2 {[%clk 0:02:45.7]} 6... O-O {[%clk 0:02:54.2]} 7.
a3 {[%clk 0:02:44.4]} 7... Nbd7 {[%clk 0:02:52.8]} 8. c5 {[%clk 0:02:42.2]} 8...
b6 {[%clk 0:02:46.7]} 9. b4 {[%clk 0:02:41.3]} 9... bxc5 {[%clk 0:02:39.4]} 10.
bxc5 {[%clk 0:02:38.4]} 10... c6 {[%clk 0:02:37.5]} 11. Bd3 {[%clk 0:02:33.8]}
11... a5 {[%clk 0:02:37.1]} 12. O-O {[%clk 0:02:29.2]} 12... Ba6 {[%clk
0:02:33.7]} 13. Bxa6 {[%clk 0:02:28.2]} 13... Rxa6 {[%clk 0:02:34.6]} 14. Rb1
{[%clk 0:02:28.3]} 14... Qc7 {[%clk 0:02:34.4]} 15. Bb2 {[%clk 0:02:22.5]} 15...
Rb8 {[%clk 0:02:33.8]} 16. Bc3 {[%clk 0:02:21.8]} 16... Raa8 {[%clk 0:02:32.8]}
17. Qa4 {[%clk 0:02:14.8]} 17... Ne4 {[%clk 0:02:29.5]} 18. Nxe4 {[%clk
0:02:10.9]} 18... dxe4 {[%clk 0:02:29.5]} 19. Nd2 {[%clk 0:02:10.6]} 19... f5
{[%clk 0:02:27.3]} 20. Nc4 {[%clk 0:01:58.2]} 20... Rxb1 {[%clk 0:02:21.5]} 21.
Rxb1 {[%clk 0:01:57.2]} 21... Rb8 {[%clk 0:02:22.2]} 22. Rxb8+ {[%clk 0:01:48]}
22... Qxb8 {[%clk 0:02:23.1]} 23. Qc2 {[%clk 0:01:47]} 23... a4 {[%clk
0:02:20.6]} 24. Bb4 {[%clk 0:01:31.5]} 24... Qb5 {[%clk 0:02:08.1]} 25. Nb2
{[%clk 0:01:30.3]} 25... Nf6 {[%clk 0:02:05.7]} 26. Nxa4 {[%clk 0:01:24.6]}
26... Nd5 {[%clk 0:02:03.6]} 27. Be1 {[%clk 0:01:09.6]} 27... f4 {[%clk
0:01:59.7]} 28. exf4 {[%clk 0:01:02.7]} 28... Nxf4 {[%clk 0:01:57.2]} 29. Nc3
{[%clk 0:01:02.3]} 29... Qd3 {[%clk 0:01:51.7]} 30. Qxd3 {[%clk 0:01:01.4]}
30... exd3 {[%clk 0:01:51.3]} 31. Bd2 {[%clk 0:01:00.4]} 31... Ne2+ {[%clk
0:01:41.7]} 32. Nxe2 {[%clk 0:00:48.3]} 32... dxe2 {[%clk 0:01:42.6]} 33. a4
{[%clk 0:00:45.7]} 33... Bf6 {[%clk 0:01:38.9]} 34. g3 {[%clk 0:00:39.4]} 34...
Bxd4 {[%clk 0:01:39]} 35. Kg2 {[%clk 0:00:36.1]} 35... Kf7 {[%clk 0:01:35.4]}
36. Kf3 {[%clk 0:00:35.7]} 36... Ke7 {[%clk 0:01:36]} 37. Kxe2 {[%clk
0:00:35.9]} 37... Kd7 {[%clk 0:01:34.5]} 38. Be3 {[%clk 0:00:34.7]} 38... Bc3
{[%clk 0:01:34.6]} 39. Kd3 {[%clk 0:00:35]} 39... Ba5 {[%clk 0:01:33.3]} 40. Kc4
{[%clk 0:00:33]} 40... e5 {[%clk 0:01:32.6]} 41. g4 {[%clk 0:00:30.9]} 41... g6
{[%clk 0:01:32.3]} 42. h3 {[%clk 0:00:30.9]} 42... Ke6 {[%clk 0:01:28.7]} 43. f3
{[%clk 0:00:30.9]} 43... h5 {[%clk 0:01:22.9]} 44. Bc1 {[%clk 0:00:30.4]} 44...
hxg4 {[%clk 0:01:18.8]} 45. hxg4 {[%clk 0:00:30.4]} 45... Kd7 {[%clk 0:01:10.3]}
46. Bb2 {[%clk 0:00:27.5]} 46... Bc7 {[%clk 0:01:10.9]} 47. Bc3 {[%clk
0:00:25.8]} 47... Ke6 {[%clk 0:01:11.4]} 48. a5 {[%clk 0:00:24.7]} 48... Kd7
{[%clk 0:01:12.2]} 49. Kd3 {[%clk 0:00:24.1]} 49... Kc8 {[%clk 0:01:00.4]} 50.
a6 {[%clk 0:00:24]} 50... Kb8 {[%clk 0:01:00.6]} 51. Ke4 {[%clk 0:00:24.1]}
51... Ka7 {[%clk 0:01:01.1]} 52. Bxe5 {[%clk 0:00:24.2]} 52... Bd8 {[%clk
0:01:01]} 53. Bd6 {[%clk 0:00:19.7]} 53... Kxa6 {[%clk 0:01:01.4]} 54. f4 {[%clk
0:00:18.1]} 54... Kb7 {[%clk 0:01:01.6]} 55. f5 {[%clk 0:00:18.1]} 55... g5
{[%clk 0:00:53.5]} 56. Ke5 {[%clk 0:00:17.7]} 56... Kc8 {[%clk 0:00:53.3]} 57.
Ke6 {[%clk 0:00:17.9]} 1-0